[Event "Championnat d'Europe Rapide"]
[Date "2024.12.08"]
[White "Mueller, Magnus"]
[Black "Popovic, Milos T"]
[WhiteElo "2166"]
[BlackElo "2334"]
[Round "10.52"]
[Result "1/2-1/2"]
[TimeControl "900+10"]

1. e4 {[%emt 00:00:06] [%clk 00:15:14]} c5 {[%emt 00:00:03] [%clk 00:15:18]} 2.
Nf3 {[%emt 00:00:04] [%clk 00:15:19]} Nc6 {[%emt 00:00:06] [%clk 00:15:23]} 3.
Bb5 {[%emt 00:00:02] [%clk 00:15:27]} e5 {[%emt 00:00:08] [%clk 00:15:24]} 4.
O-O {[%emt 00:00:03] [%clk 00:15:33]} Nge7 {[%emt 00:00:03] [%clk 00:15:32]} 5.
c3 {[%emt 00:00:01] [%clk 00:15:42]} g6 {[%emt 00:00:02] [%clk 00:15:40]} 6.
Bxc6 {[%emt 00:00:02] [%clk 00:15:50]} Nxc6 {[%emt 00:00:06] [%clk 00:15:44]} 7.
d4 {[%emt 00:00:01] [%clk 00:15:59]} cxd4 {[%emt 00:00:01] [%clk 00:15:53]} 8.
cxd4 {[%emt 00:00:02] [%clk 00:16:08]} exd4 {[%emt 00:00:23] [%clk 00:15:39]} 9.
Nxd4 {[%emt 00:00:01] [%clk 00:16:16]} Bg7 {[%emt 00:00:01] [%clk 00:15:48]} 10.
Nb5 {[%emt 00:00:02] [%clk 00:16:25]} O-O {[%emt 00:00:01] [%clk 00:15:56]} 11.
Nd6 {[%emt 00:00:03] [%clk 00:16:33]} b6 {[%emt 00:01:08] [%clk 00:14:58]} 12.
Nc3 {[%emt 00:00:04] [%clk 00:16:39]} a5 {[%emt 00:01:57] [%clk 00:13:11]} 13.
Bf4 {[%emt 00:01:22] [%clk 00:15:26]} Ba6 {[%emt 00:00:04] [%clk 00:13:18]} 14.
Re1 {[%emt 00:00:36] [%clk 00:15:00]} Nb4 {[%emt 00:00:11] [%clk 00:13:17]} 15.
Re3 {[%emt 00:01:58] [%clk 00:13:11]} Qf6 {[%emt 00:04:56] [%clk 00:08:31]} 16.
Bg3 {[%emt 00:00:36] [%clk 00:12:46]} Qd4 {[%emt 00:00:02] [%clk 00:08:39]} 17.
Qb3 {[%emt 00:06:05] [%clk 00:06:51]} Bd3 {[%emt 00:01:56] [%clk 00:06:53]} 18.
a3 {[%emt 00:01:39] [%clk 00:05:22]} Nc2 {[%emt 00:02:17] [%clk 00:04:45]} 19.
Rxd3 {[%emt 00:00:05] [%clk 00:05:28]} Qxd3 {[%emt 00:00:01] [%clk 00:04:54]}
20. Rd1 {[%emt 00:00:04] [%clk 00:05:35]} Nd4 {[%emt 00:00:01] [%clk 00:05:02]}
21. Qd5 {[%emt 00:02:24] [%clk 00:03:21]} Ne2+ {[%emt 00:02:07] [%clk 00:03:05]}
22. Nxe2 {[%emt 00:00:02] [%clk 00:03:30]} Qxe2 {[%clk 00:03:13]} 23. Nxf7
{[%emt 00:00:04] [%clk 00:03:36]} Rxf7 {[%emt 00:00:14] [%clk 00:03:10]} 24.
Qxa8+ {[%clk 00:03:45]} Bf8 {[%clk 00:03:19]} 25. Rf1 {[%emt 00:01:28] [%clk
00:02:27]} Qxb2 {[%emt 00:00:07] [%clk 00:03:22]} 26. Bd6 {[%emt 00:00:38] [%clk
00:02:00]} Qd4 {[%emt 00:00:27] [%clk 00:03:04]} 27. Bxf8 {[%emt 00:00:31] [%clk
00:01:38]} Rxf8 {[%clk 00:03:14]} 28. Qb7 {[%emt 00:00:03] [%clk 00:01:45]} Re8
{[%emt 00:01:01] [%clk 00:02:23]} 29. Qd5+ {[%emt 00:00:41] [%clk 00:01:14]}
Qxd5 {[%emt 00:00:02] [%clk 00:02:31]} 30. exd5 {[%clk 00:01:23]} Re5 {[%emt
00:00:15] [%clk 00:02:26]} 31. Rd1 {[%emt 00:00:07] [%clk 00:01:26]} Kf7 {[%emt
00:00:10] [%clk 00:02:26]} 32. f4 {[%emt 00:00:23] [%clk 00:01:13]} Re4 {[%emt
00:00:56] [%clk 00:01:40]} 33. g3 {[%emt 00:00:34] [%clk 00:00:49]} Ra4 {[%emt
00:00:51] [%clk 00:00:59]} 34. Rb1 {[%emt 00:00:04] [%clk 00:00:55]} Rxa3 {[%clk
00:01:08]} 35. Rxb6 {[%emt 00:00:01] [%clk 00:01:04]} Rd3 {[%clk 00:01:17]} 36.
Rb5 {[%emt 00:00:17] [%clk 00:00:57]} a4 {[%emt 00:00:01] [%clk 00:01:26]} 37.
Ra5 {[%clk 00:01:06]} a3 {[%emt 00:00:05] [%clk 00:01:31]} 38. Kf2 {[%emt
00:00:47] [%clk 00:00:29]} Ke7 {[%emt 00:00:02] [%clk 00:01:40]} 39. Ra6 {[%clk
00:00:38]} Rb3 {[%emt 00:00:06] [%clk 00:01:43]} 40. g4 {[%emt 00:00:07] [%clk
00:00:41]} Rh3 {[%emt 00:00:23] [%clk 00:01:30]} 41. Kg2 {[%emt 00:00:05] [%clk
00:00:47]} Rd3 {[%emt 00:00:02] [%clk 00:01:37]} 42. h4 {[%emt 00:00:16] [%clk
00:00:41]} Kf7 {[%emt 00:01:06] [%clk 00:00:41]} 43. Ra7 {[%emt 00:00:18] [%clk
00:00:33]} Ke8 {[%emt 00:00:19] [%clk 00:00:32]} 44. Ra8+ {[%emt 00:00:05] [%clk
00:00:38]} Ke7 {[%emt 00:00:01] [%clk 00:00:41]} 45. Ra6 {[%clk 00:00:47]}
1/2-1/2

[Site "Europe Echecs"]

[Event "Championnat d'Europe Rapide"]
[Date "2024.12.08"]
[White "Siekanska, Maria"]
[Black "Djurovic, Peko"]
[WhiteElo "2080"]
[BlackElo "2253"]
[Round "10.53"]
[Result "1-0"]
[TimeControl "900+10"]

1. e4 {[%emt 00:01:03] [%clk 00:14:12]} c5 {[%emt 00:00:08] [%clk 00:15:17]} 2.
Nf3 {[%emt 00:00:01] [%clk 00:14:20]} Nc6 {[%emt 00:00:05] [%clk 00:15:22]} 3.
Bb5 {[%emt 00:00:08] [%clk 00:14:23]} e6 {[%emt 00:00:03] [%clk 00:15:29]} 4.
Bxc6 {[%emt 00:00:01] [%clk 00:14:31]} bxc6 {[%emt 00:00:02] [%clk 00:15:37]} 5.
d3 {[%emt 00:00:02] [%clk 00:14:39]} Ne7 {[%emt 00:00:03] [%clk 00:15:44]} 6.
Nbd2 {[%emt 00:00:03] [%clk 00:14:47]} Ng6 {[%emt 00:00:10] [%clk 00:15:43]} 7.
h4 {[%emt 00:00:04] [%clk 00:14:55]} h5 {[%emt 00:00:56] [%clk 00:14:56]} 8. e5
{[%emt 00:00:01] [%clk 00:15:03]} Qc7 {[%emt 00:00:55] [%clk 00:14:12]} 9. Qe2
{[%emt 00:00:27] [%clk 00:14:46]} f6 {[%emt 00:00:28] [%clk 00:13:54]} 10. Nc4
{[%emt 00:01:55] [%clk 00:13:01]} Ba6 {[%emt 00:00:04] [%clk 00:14:00]} 11. Qe4
{[%emt 00:01:30] [%clk 00:11:41]} Kf7 {[%emt 00:03:03] [%clk 00:11:07]} 12. Bf4
{[%emt 00:00:07] [%clk 00:11:44]} Bxc4 {[%emt 00:00:03] [%clk 00:11:15]} 13.
dxc4 {[%emt 00:00:02] [%clk 00:11:52]} Rb8 {[%emt 00:02:02]} 14. O-O-O {[%emt
00:00:01] [%clk 00:11:43]} Nxf4 {[%emt 00:02:14] [%clk 00:07:36]} 15. Qxf4
{[%emt 00:00:02] [%clk 00:11:50]} Be7 {[%emt 00:00:02] [%clk 00:07:45]} 16. g4
{[%emt 00:01:45] [%clk 00:10:15]} hxg4 {[%emt 00:01:41] [%clk 00:06:14]} 17.
Qxg4 {[%emt 00:00:03] [%clk 00:10:22]} fxe5 {[%emt 00:00:08] [%clk 00:06:16]}
18. Rxd7 {[%emt 00:00:18] [%clk 00:10:13]} Qb6 {[%emt 00:00:09] [%clk 00:06:18]}
19. Nxe5+ {[%emt 00:00:15] [%clk 00:10:08]} Kg8 {[%emt 00:00:28] [%clk
00:06:00]} 20. Qxe6+ {[%emt 00:00:16] [%clk 00:10:02]} Kh7 {[%emt 00:00:01]
[%clk 00:06:08]} 21. b3 {[%emt 00:00:28] [%clk 00:09:45]} 1-0

[Site "Europe Echecs"]

[Event "Championnat d'Europe Rapide"]
[Date "2024.12.08"]
[White "Zlatkov, Anton"]
[Black "Ciolacu, Alessia-Mihaela"]
[WhiteElo "2324"]
[BlackElo "2124"]
[Round "10.54"]
[Result "1-0"]
[TimeControl "900+10"]

1. c4 {[%emt 00:00:06] [%clk 00:15:13]} c5 {[%emt 00:00:07] [%clk 00:15:12]} 2.
Nf3 {[%emt 00:00:03] [%clk 00:15:21]} Nc6 {[%emt 00:00:02] [%clk 00:15:21]} 3.
d4 {[%emt 00:00:02] [%clk 00:15:28]} cxd4 {[%emt 00:00:06] [%clk 00:15:25]} 4.
Nxd4 {[%emt 00:00:06] [%clk 00:15:32]} Nf6 {[%emt 00:00:07] [%clk 00:15:27]} 5.
Nc3 {[%emt 00:00:03] [%clk 00:15:39]} e6 {[%emt 00:00:14] [%clk 00:15:24]} 6. g3
{[%emt 00:00:09] [%clk 00:15:41]} Bc5 {[%emt 00:00:28] [%clk 00:15:05]} 7. Ndb5
{[%emt 00:00:57] [%clk 00:14:54]} O-O {[%emt 00:00:13] [%clk 00:15:02]} 8. Bg2
{[%emt 00:01:07] [%clk 00:13:56]} Qe7 {[%emt 00:00:32] [%clk 00:14:42]} 9. Bf4
{[%emt 00:03:15] [%clk 00:10:51]} e5 {[%emt 00:00:54] [%clk 00:13:57]} 10. Bg5
{[%emt 00:01:24] [%clk 00:09:37]} Bxf2+ {[%emt 00:00:29] [%clk 00:13:38]} 11.
Kf1 {[%emt 00:00:03] [%clk 00:09:45]} Bb6 {[%emt 00:01:06] [%clk 00:12:41]} 12.
Nd5 {[%emt 00:00:29] [%clk 00:09:26]} Qe6 {[%emt 00:01:01] [%clk 00:11:50]} 13.
Bxf6 {[%emt 00:00:29] [%clk 00:09:08]} Qf5+ {[%emt 00:00:40] [%clk 00:11:19]}
14. Bf3 {[%emt 00:00:30] [%clk 00:08:47]} gxf6 {[%emt 00:00:20] [%clk 00:11:10]}
15. e4 {[%emt 00:00:47] [%clk 00:08:11]} Qg5 {[%emt 00:00:29] [%clk 00:10:50]}
16. h4 {[%emt 00:02:43] [%clk 00:05:38]} Qh6 {[%emt 00:01:09] [%clk 00:09:51]}
17. Nd6 {[%emt 00:00:18] [%clk 00:05:31]} Nd4 {[%emt 00:01:37] [%clk 00:08:23]}
18. Ne7+ {[%emt 00:00:29] [%clk 00:05:12]} Kh8 {[%emt 00:00:03] [%clk 00:08:30]}
19. Ndf5 {[%emt 00:00:04] [%clk 00:05:19]} Nxf5 {[%emt 00:00:10] [%clk
00:08:29]} 20. Nxf5 {[%emt 00:00:02] [%clk 00:05:27]} Qg6 {[%emt 00:00:12] [%clk
00:08:27]} 21. Qd6 {[%emt 00:00:19] [%clk 00:05:18]} Re8 {[%emt 00:03:41] [%clk
00:04:56]} 22. Bh5 {[%emt 00:00:45] [%clk 00:04:43]} Re6 {[%emt 00:00:09] [%clk
00:04:58]} 23. Bxg6 {[%emt 00:00:17] [%clk 00:04:36]} Rxd6 {[%emt 00:00:02]
[%clk 00:05:06]} 24. Nxd6 {[%emt 00:00:02] [%clk 00:04:44]} fxg6 {[%emt
00:00:02] [%clk 00:05:14]} 25. Kg2 {[%emt 00:00:07] [%clk 00:04:46]} Kg7 {[%emt
00:00:27] [%clk 00:04:57]} 26. Rhf1 {[%emt 00:00:04] [%clk 00:04:52]} Bd8 {[%emt
00:00:08] [%clk 00:04:59]} 27. Rad1 {[%emt 00:00:04] [%clk 00:04:59]} b6 {[%emt
00:01:54] [%clk 00:03:15]} 28. Nxc8 {[%emt 00:00:06] [%clk 00:05:03]} Rxc8
{[%emt 00:00:01] [%clk 00:03:24]} 29. Rxd7+ {[%emt 00:00:02] [%clk 00:05:11]}
Kf8 {[%emt 00:00:17] [%clk 00:03:16]} 30. Rxh7 {[%emt 00:00:51] [%clk 00:04:30]}
Rxc4 {[%emt 00:00:05] [%clk 00:03:22]} 31. Rd1 {[%emt 00:00:01] [%clk 00:04:39]}
Rc2+ {[%emt 00:00:30] [%clk 00:03:01]} 32. Kh3 {[%emt 00:00:01] [%clk 00:04:47]}
Rc8 {[%emt 00:00:53] [%clk 00:02:19]} 33. Rdd7 {[%emt 00:00:11] [%clk 00:04:46]}
Kg8 {[%emt 00:00:22] [%clk 00:02:07]} 34. Rdg7+ {[%emt 00:00:01] [%clk
00:04:55]} Kf8 {[%emt 00:00:01] [%clk 00:02:16]} 35. Rxg6 {[%emt 00:00:02] [%clk
00:05:03]} 1-0

[Site "Europe Echecs"]

[Event "Championnat d'Europe Rapide"]
[Date "2024.12.08"]
[White "Quparadze, Giga"]
[Black "Jobava, Baadur"]
[WhiteElo "2537"]
[BlackElo "2578"]
[Round "11.2"]
[Result "0-1"]
[TimeControl "900+10"]

1. e4 {[%emt 00:00:55] [%clk 00:14:25]} d6 {[%emt 00:00:21] [%clk 00:14:59]} 2.
d4 {[%emt 00:00:02] [%clk 00:14:32]} Nf6 {[%emt 00:00:03] [%clk 00:15:07]} 3.
Nc3 {[%emt 00:00:02] [%clk 00:14:40]} e5 {[%emt 00:00:03] [%clk 00:15:14]} 4.
Nf3 {[%emt 00:00:06] [%clk 00:14:44]} Nbd7 {[%emt 00:00:03] [%clk 00:15:22]} 5.
Bc4 {[%emt 00:00:02] [%clk 00:14:51]} Be7 {[%emt 00:00:02] [%clk 00:15:30]} 6.
O-O {[%emt 00:00:03] [%clk 00:14:58]} O-O {[%emt 00:00:02] [%clk 00:15:38]} 7.
Re1 {[%emt 00:00:02] [%clk 00:15:06]} c6 {[%emt 00:00:11] [%clk 00:15:37]} 8. a4
{[%emt 00:00:07] [%clk 00:15:09]} h6 {[%emt 00:00:03] [%clk 00:15:44]} 9. h3
{[%emt 00:00:09] [%clk 00:15:10]} Re8 {[%emt 00:00:04] [%clk 00:15:50]} 10. b3
{[%emt 00:00:08] [%clk 00:15:12]} Qc7 {[%emt 00:00:06] [%clk 00:15:54]} 11. Bb2
{[%emt 00:00:03] [%clk 00:15:20]} Nf8 {[%emt 00:00:06] [%clk 00:15:57]} 12. Bd3
{[%emt 00:00:19] [%clk 00:15:10]} Ng6 {[%emt 00:00:05] [%clk 00:16:03]} 13. Ne2
{[%emt 00:00:05] [%clk 00:15:16]} Be6 {[%emt 00:00:14] [%clk 00:15:59]} 14. Ng3
{[%emt 00:00:02] [%clk 00:15:23]} Rad8 {[%emt 00:00:04] [%clk 00:16:06]} 15. Bf1
{[%emt 00:00:04] [%clk 00:15:28]} a5 {[%emt 00:00:06] [%clk 00:16:11]} 16. Nh2
{[%emt 00:00:15] [%clk 00:15:22]} d5 {[%emt 00:00:15] [%clk 00:16:06]} 17. exd5
{[%emt 00:00:26] [%clk 00:15:06]} Nxd5 {[%emt 00:00:09] [%clk 00:16:08]} 18.
dxe5 {[%emt 00:00:31] [%clk 00:14:45]} Bb4 {[%emt 00:00:05] [%clk 00:16:13]} 19.
Qf3 {[%emt 00:00:47] [%clk 00:14:08]} Bxe1 {[%emt 00:00:04] [%clk 00:16:19]} 20.
Rxe1 {[%emt 00:00:01] [%clk 00:14:16]} Nb4 {[%emt 00:00:08] [%clk 00:16:21]} 21.
Qe4 {[%emt 00:00:21] [%clk 00:14:05]} Bd5 {[%emt 00:00:16] [%clk 00:16:15]} 22.
Qf5 {[%emt 00:00:04] [%clk 00:14:10]} Qd7 {[%emt 00:01:04] [%clk 00:15:22]} 23.
c4 {[%emt 00:00:18] [%clk 00:14:02]} Be6 {[%emt 00:00:04] [%clk 00:15:28]} 24.
Qe4 {[%emt 00:00:06] [%clk 00:14:06]} Qd2 {[%emt 00:00:24] [%clk 00:15:14]} 25.
Rb1 {[%emt 00:00:27] [%clk 00:13:49]} Nd3 {[%emt 00:00:15] [%clk 00:15:10]} 26.
Bxd3 {[%emt 00:00:34] [%clk 00:13:25]} Qxd3 {[%emt 00:00:02] [%clk 00:15:17]}
27. Nf3 {[%emt 00:00:15] [%clk 00:13:20]} Qxb3 {[%emt 00:00:33] [%clk 00:14:54]}
0-1

[Site "Europe Echecs"]

[Event "Championnat d'Europe Rapide"]
[Date "2024.12.08"]
[White "Sargissian, Gabriel"]
[Black "Dardha, Daniel"]
[WhiteElo "2628"]
[BlackElo "2639"]
[Round "11.3"]
[Result "1/2-1/2"]
[TimeControl "900+10"]

1. Nf3 {[%emt 00:20:50] [%clk 00:15:17]} d5 {[%emt 00:00:10] [%clk 00:15:11]} 2.
g3 {[%emt 00:00:02] [%clk 00:15:25]} g6 {[%emt 00:00:12] [%clk 00:15:09]} 3. Bg2
{[%emt 00:00:03] [%clk 00:15:32]} Bg7 {[%emt 00:00:02] [%clk 00:15:17]} 4. d4
{[%emt 00:00:03] [%clk 00:15:39]} Nf6 {[%emt 00:00:03] [%clk 00:15:24]} 5. O-O
{[%emt 00:00:03] [%clk 00:15:45]} O-O {[%emt 00:00:03] [%clk 00:15:32]} 6. c4
{[%emt 00:00:03] [%clk 00:15:52]} dxc4 {[%emt 00:00:10] [%clk 00:15:32]} 7. Na3
{[%emt 00:01:03] [%clk 00:14:59]} c5 {[%emt 00:00:06] [%clk 00:15:36]} 8. dxc5
{[%emt 00:00:19] [%clk 00:14:50]} c3 {[%emt 00:00:15] [%clk 00:15:31]} 9. Nb5
{[%emt 00:00:41] [%clk 00:14:19]} Na6 {[%emt 00:00:28] [%clk 00:15:13]} 10. Nxc3
{[%emt 00:00:16] [%clk 00:14:13]} Nxc5 {[%emt 00:00:02] [%clk 00:15:20]} 11. Be3
{[%emt 00:00:06] [%clk 00:14:16]} Nfe4 {[%emt 00:00:16] [%clk 00:15:14]} 12.
Nxe4 {[%emt 00:00:11] [%clk 00:14:16]} Nxe4 {[%emt 00:00:02] [%clk 00:15:22]}
13. Bd4 {[%emt 00:00:09] [%clk 00:14:17]} Bf5 {[%emt 00:00:05] [%clk 00:15:27]}
14. Bxg7 {[%emt 00:00:37] [%clk 00:13:50]} Qxd1 {[%emt 00:00:03] [%clk
00:15:34]} 15. Rfxd1 {[%emt 00:00:05] [%clk 00:13:55]} Kxg7 {[%emt 00:00:02]
[%clk 00:15:42]} 16. Nd4 {[%emt 00:00:16] [%clk 00:13:49]} Nd6 {[%emt 00:00:04]
[%clk 00:15:48]} 17. Rac1 {[%emt 00:00:54] [%clk 00:13:04]} 1/2-1/2

[Site "Europe Echecs"]

[Event "Championnat d'Europe Rapide"]
[Date "2024.12.08"]
[White "Stojanovski, Dejan"]
[Black "Van Foreest, Jorden"]
[WhiteElo "2407"]
[BlackElo "2677"]
[Round "11.4"]
[Result "1/2-1/2"]
[TimeControl "900+10"]

1. d4 {[%emt 00:20:24] [%clk 00:15:18]} Nf6 {[%emt 00:00:08] [%clk 00:15:11]} 2.
Nf3 {[%emt 00:00:02] [%clk 00:15:27]} d5 {[%emt 00:00:08] [%clk 00:15:13]} 3. c3
{[%emt 00:00:01] [%clk 00:15:36]} Qd6 {[%emt 00:00:38] [%clk 00:14:45]} 4. g3
{[%emt 00:01:42] [%clk 00:14:04]} c5 {[%emt 00:00:05] [%clk 00:14:51]} 5. Bf4
{[%emt 00:00:38] [%clk 00:13:36]} Qb6 {[%emt 00:00:02] [%clk 00:14:59]} 6. Qb3
{[%emt 00:00:01] [%clk 00:13:44]} Nc6 {[%emt 00:00:10] [%clk 00:14:58]} 7. dxc5
{[%emt 00:00:27] [%clk 00:13:27]} Qxc5 {[%emt 00:00:03] [%clk 00:15:06]} 8. Bg2
{[%emt 00:00:13] [%clk 00:13:24]} g6 {[%emt 00:00:02] [%clk 00:15:14]} 9. O-O
{[%emt 00:00:59] [%clk 00:12:35]} Bg7 {[%emt 00:00:02] [%clk 00:15:21]} 10. Na3
{[%emt 00:00:27] [%clk 00:12:19]} O-O {[%emt 00:00:42] [%clk 00:14:49]} 11. Qb5
{[%emt 00:00:27] [%clk 00:12:02]} Qxb5 {[%emt 00:01:45] [%clk 00:13:15]} 12.
Nxb5 {[%emt 00:00:01] [%clk 00:12:10]} a6 {[%emt 00:00:03] [%clk 00:13:22]} 13.
Nbd4 {[%emt 00:00:25] [%clk 00:11:54]} Bd7 {[%emt 00:01:32] [%clk 00:12:00]} 14.
Ne5 {[%emt 00:00:35] [%clk 00:11:29]} e6 {[%emt 00:00:04] [%clk 00:12:07]} 15.
Nxd7 {[%emt 00:00:28] [%clk 00:11:11]} Nxd7 {[%emt 00:00:03] [%clk 00:12:14]}
16. Nb3 {[%emt 00:00:06] [%clk 00:11:15]} f5 {[%emt 00:01:45] [%clk 00:10:39]}
17. Rfd1 {[%emt 00:00:10] [%clk 00:11:15]} Rfd8 {[%emt 00:01:10] [%clk
00:09:38]} 18. Bg5 {[%emt 00:01:19] [%clk 00:10:07]} Bf6 {[%emt 00:00:07] [%clk
00:09:41]} 19. Bxf6 {[%emt 00:00:25] [%clk 00:09:52]} Nxf6 {[%emt 00:00:03]
[%clk 00:09:48]} 20. Nc5 {[%emt 00:00:01] [%clk 00:10:01]} Kf7 {[%emt 00:00:20]
[%clk 00:09:38]} 21. c4 {[%emt 00:00:35] [%clk 00:09:36]} b6 {[%emt 00:00:51]
[%clk 00:08:58]} 22. cxd5 {[%emt 00:00:04] [%clk 00:09:42]} exd5 {[%emt
00:00:06] [%clk 00:09:01]} 23. Nd3 {[%emt 00:00:23] [%clk 00:09:29]} Rac8 {[%emt
00:00:32] [%clk 00:08:38]} 24. Rac1 {[%emt 00:00:06] [%clk 00:09:33]} Ne7 {[%emt
00:01:15] [%clk 00:07:34]} 25. Rxc8 {[%emt 00:01:13] [%clk 00:08:31]} Rxc8
{[%emt 00:00:01] [%clk 00:07:42]} 26. Nb4 {[%emt 00:01:07] [%clk 00:07:34]} Ke6
{[%emt 00:00:02] [%clk 00:07:50]} 27. Bf3 {[%emt 00:00:35] [%clk 00:07:09]} g5
{[%emt 00:00:14] [%clk 00:07:46]} 28. Nd3 {[%emt 00:00:10] [%clk 00:07:10]} Rc4
{[%emt 00:00:44] [%clk 00:07:11]} 29. Rc1 {[%emt 00:00:05] [%clk 00:07:14]} Kd6
{[%emt 00:00:05] [%clk 00:07:17]} 30. e3 {[%emt 00:00:11] [%clk 00:07:13]} Nc6
{[%emt 00:00:30] [%clk 00:06:56]} 31. Be2 {[%emt 00:01:17] [%clk 00:06:06]} b5
{[%emt 00:00:32] [%clk 00:06:35]} 32. Kf1 {[%emt 00:00:20] [%clk 00:05:57]} Ne5
{[%emt 00:01:04] [%clk 00:05:40]} 33. Rb1 {[%emt 00:01:16] [%clk 00:04:51]} Rc7
{[%emt 00:00:13] [%clk 00:05:35]} 34. Nxe5 {[%emt 00:00:08] [%clk 00:04:55]}
Kxe5 {[%emt 00:00:01] [%clk 00:05:44]} 35. Bd3 {[%emt 00:00:02] [%clk 00:05:03]}
g4 {[%emt 00:00:20] [%clk 00:05:34]} 36. Ke2 {[%emt 00:00:03] [%clk 00:05:10]}
Ne4 {[%emt 00:00:02] [%clk 00:05:43]} 37. h3 {[%emt 00:00:33] [%clk 00:04:46]}
h5 {[%emt 00:02:45] [%clk 00:03:08]} 38. hxg4 {[%emt 00:00:02] [%clk 00:04:55]}
hxg4 {[%emt 00:00:58] [%clk 00:02:20]} 39. Bxe4 {[%emt 00:00:07] [%clk
00:04:58]} Kxe4 {[%emt 00:00:11] [%clk 00:02:18]} 40. Rd1 {[%emt 00:01:46] [%clk
00:03:22]} Rc2+ {[%emt 00:00:09] [%clk 00:02:19]} 41. Rd2 {[%emt 00:00:01] [%clk
00:03:32]} Rxd2+ {[%emt 00:00:02] [%clk 00:02:27]} 42. Kxd2 {[%clk 00:03:41]} d4
{[%emt 00:00:22] [%clk 00:02:15]} 43. exd4 {[%emt 00:00:01] [%clk 00:03:50]}
Kxd4 {[%emt 00:00:01] [%clk 00:02:24]} 44. Kc2 {[%emt 00:00:19] [%clk 00:03:42]}
a5 {[%emt 00:00:59] [%clk 00:01:35]} 45. b3 {[%emt 00:00:52] [%clk 00:02:59]} a4
{[%emt 00:00:33] [%clk 00:01:12]} 46. bxa4 {[%emt 00:00:33] [%clk 00:02:36]}
bxa4 {[%clk 00:01:21]} 47. Kd2 {[%emt 00:00:22] [%clk 00:02:24]} Ke4 {[%emt
00:00:51] [%clk 00:00:39]} 48. Ke2 {[%emt 00:00:03] [%clk 00:02:32]} a3 {[%emt
00:00:15] [%clk 00:00:34]} 49. Kd2 {[%emt 00:00:01] [%clk 00:02:41]} Kd4 {[%emt
00:00:01] [%clk 00:00:43]} 50. Kc2 {[%emt 00:00:04] [%clk 00:02:47]} Ke4 {[%emt
00:00:12] [%clk 00:00:40]} 51. Kd2 {[%emt 00:00:01] [%clk 00:02:57]} f4 {[%emt
00:00:23] [%clk 00:00:27]} 52. gxf4 {[%emt 00:00:23] [%clk 00:02:45]} Kxf4
{[%emt 00:00:01] [%clk 00:00:35]} 53. Ke2 {[%emt 00:00:01] [%clk 00:02:54]} Ke4
{[%emt 00:00:06] [%clk 00:00:39]} 54. Kd2 {[%emt 00:00:05] [%clk 00:02:59]} Kd4
{[%emt 00:00:03] [%clk 00:00:46]} 55. Kc2 {[%emt 00:00:06] [%clk 00:03:03]} Ke5
{[%emt 00:00:11] [%clk 00:00:45]} 56. Kd3 {[%emt 00:00:36] [%clk 00:02:37]} Kf4
{[%emt 00:00:14] [%clk 00:00:41]} 57. Ke2 {[%emt 00:00:06] [%clk 00:02:42]} Ke4
{[%emt 00:00:22] [%clk 00:00:28]} 58. Kd2 {[%emt 00:00:16] [%clk 00:02:36]} Kd4
{[%emt 00:00:03] [%clk 00:00:34]} 59. Kc2 {[%emt 00:00:01] [%clk 00:02:45]} Kc4
{[%emt 00:00:07] [%clk 00:00:36]} 60. Kd2 {[%emt 00:00:04] [%clk 00:02:52]} Kd4
{[%emt 00:00:06] [%clk 00:00:40]} 61. Kc2 {[%clk 00:03:01]} 1/2-1/2

[Site "Europe Echecs"]